Workbook

Sheet Summary
A1: Mukti Book Bank budget for 2014
A2: Budget details
H3: (@52 Rs)
B4: USD Conversion Rate | C4: 58 | D4: 2014 | G4: 2013 | I4: Increase from 2013
D5: INR | E5: USD$ | G5: INR | H5: USD$ | I5: In INR | J5: In USD
B6: Main Book Bank | D6: ='Main BookBank Budget'!I12 -> 605400 | E6: =D6/C$4 -> 10437.93103 | G6: 539000 | H6: 10365.38 | I6: =(D6-G6)/G6 -> 0.1231910946 | J6: =(E6-H6)/H6 -> 0.006999360803
B7: Alia Book Bank | D7: ='Alia Affected BookBank Budget'!I11 -> 657280 | E7: =D7/C$4 -> 11332.41379 | G7: 598530 | H7: 11510.19 | I7: =(D7-G7)/G7 -> 0.09815715169 | J7: =(E7-H7)/H7 -> -0.01544511488
B8: Previous Year Balance | D8: 45000 | E8: =-(D8/C4) -> -775.862069 | H8: -1200
B10: Total Requested: | D10: =D6+D7-D8 -> 1217680 | E10: =SUM(E6:E8) -> 20994.48276 | G10: =G7+G6 -> 1137530 | H10: =(H6+H7+H8) -> 20675.57 | I10: =(D10-G10)/G10 -> 0.07045968018 | J10: =(E10-H10)/H10 -> 0.01542461749
B13: Extra Capital Expenses | D13: INR | E13: USD$
B14: Library Building Maintenace | D14: 55000 | E14: =D14/C$4 -> 948.2758621 | G14: 55000 | H14: =G14/52 -> 1057.692308 | I14: 0
B15: Administrative cost and communication (1 Librarian and 1 assistant) | D15: 55000 | E15: =D15/C$4 -> 948.2758621 | G15: 55000 | H15: =G15/52 -> 1057.692308 | I15: 0
B16: Total Requested: | D16: =SUM(D14:D15) -> 110000 | E16: =SUM(E14:E15) -> 1896.551724
B18: Total Disbursed 2013 | G18: 1102000 | H18: 19867 | J18: (Actual disbursed in 2013)
B20: Total Fund Required | D20: =D10+D16 -> 1327680 | E20: =E10+E16 -> 22891.03448 | G20: =G10 -> 1137530 | H20: =H10 -> 20675.57 | I20: =(D20-G20)/G20 -> 0.1671604265 | J20: (From requested amount)
I21: =(D20-G18)/G18 -> 0.2047912886 | J21: (From actual amount)
B23: Increase in Budget from 2013 (Requested) | C23: =I20 -> 0.1671604265 | D23: =D20-G18 -> 225680 | G23: =D20 -> 1327680 | H23: =G23/C4 -> 22891.03448

Sheet Main BookBank Budget
A1: Budget details (Main Areas)
B3: USD Conversion Rate | C3: 58
A5: No | B5: Particulars | C5: No of book sets | D5: Price per set | E5: # New Books | F5: Price Per set | G5: Per month | H5: No of Months | I5: Total expenses (in Rupees) | J5: Total expenses ( in dollars)
A7: 1 | B7: Book bank depreciation | C7: ='Main School List'!H14 -> 2040 | D7: 220 | I7: =C7*D7 -> 448800 | J7: =I7/$C3 -> 7737.931034
A8: 2 | B8: One Librarian salary | G8: 3000 | H8: 12 | I8: =G8*H8 -> 36000 | J8: =I8/$C3 -> 620.6896552
A9: 3 | B9: One full time volunteer for book bank help | G9: 3250 | H9: 12 | I9: =G9*H9 -> 39000 | J9: =I9/$C3 -> 672.4137931
A10: 4 | B10: Stationery | C10: =C7 -> 2040 | D10: 40 | I10: =C10*D10 -> 81600 | J10: =I10/$C3 -> 1406.896552
B12: Total funds needed to support the program | I12: =SUM(I7:I10) -> 605400 | J12: =SUM(J7:J10) -> 10437.93103
A15: 6

Sheet Main School List
A1: Sl. No. | B1: Name of the School | C1: Panchyat | D1: Town | E1: Boys | F1: Girls | G1: Total | H1: Existing Book Set | I1: New Book Sets Required | J1: Total Book Set
A2: 1 | B2: AAL Ameen High Madrasa | C2: Jaynagar | D2: Jaynagar, West Bengal | E2: 320 | F2: 295 | G2: =E2+F2 -> 615 | H2: 200 | J2: =H2 -> 200
A3: 2 | B3: Nagendrapur Hemanta Kumari High School | C3: Nagendrapur | D3: Raidighi, West Bengal | E3: 820 | F3: 752 | G3: =E3+F3 -> 1572 | H3: 250 | J3: 250
A4: 3 | B4: Jota Nagendrapur Higher Secondary School | C4: Nagendrapur | D4: Raidighi, West Bengal | E4: 750 | F4: 710 | G4: 1460 | H4: 210 | J4: 210
A5: 4 | B5: Santoshghorai Balika Vidyamandir | C5: Kankandighi | D5: Raidighi, West Bengal | E5: 0 | F5: 720 | G5: 720 | H5: 170 | J5: 170
A6: 5 | B6: Babujan Shephai Higher Secondary School | C6: Kankandighi | D6: Raidighi, West Bengal | E6: 850 | F6: 778 | G6: 1628 | H6: 220 | J6: 220
A7: 6 | B7: Damkal J. H School | C7: Nagendrapur | D7: Raidighi, West Bengal | E7: 350 | F7: 270 | G7: 620 | H7: 150 | J7: 150
A8: 7 | B8: Gilarchat High School | C8: Gilarchat | D8: Raidighi, West Bengal | E8: 760 | F8: 650 | G8: 1410 | H8: 210 | J8: 210
A9: 8 | B9: Madhusudanchak M.S.K | C9: Madhusudanchak | D9: Raidighi, West Bengal | E9: 465 | F9: 375 | G9: 840 | H9: 210 | J9: 210
A10: 9 | B10: Jota Jogendrapur Higher Secondary School | C10: Jogendrapur | D10: Raidighi, West Bengal | E10: 785 | F10: 725 | G10: 1510 | H10: 200 | J10: 200
A11: 10 | B11: Baikunthapur High School | C11: Baikunthapur | D11: Raidighi, West Bengal | E11: 675 | F11: 595 | G11: 1270 | H11: 220 | J11: 220
B14: Total | E14: =SUM(E2:E13) -> 5775 | F14: =SUM(F2:F13) -> 5870 | G14: =SUM(G2:G13) -> 11645 | H14: =SUM(H2:H13) -> 2040 | J14: =SUM(J2:J13) -> 2040

Sheet Alia Affected BookBank Budget
A1: Budget details (Alia Affected Regions)
B3: USD Conversion Rate | C3: 58
A5: No | B5: Particulars | C5: # BookSets (Existing) | D5: Price Per set | E5: # New Books | F5: Price Per set | G5: Per month | H5: No of Months | I5: Total expenses (INR) | J5: Total expenses ( USD)
A7: 1 | B7: Book bank depreciation | C7: ='Alia Schools List'!J17 -> 2528 | D7: 220 | I7: =C7*D7 -> 556160 | J7: =I7/$C3 -> 9588.965517
A8: 2 | B8: Stationery | C8: =C7 -> 2528 | D8: 40 | I8: =C8*D8 -> 101120 | J8: =I8/$C3 -> 1743.448276
B11: Total funds needed to support the program | I11: =SUM(I7:I10) -> 657280 | J11: =SUM(J7:J9) -> 11332.41379
B13: * Administrative and communication expense is necessary as the schools are spread over a larger region
B14: * For 2014, cost is the replacement of booksets, no new booksets will be procurred

Sheet Alia Schools List
A3: Sl. No. | B3: Name of the School | C3: Panchyat | D3: Town | E3: Boys | F3: Girls | G3: Total | H3: Existing Book Set | I3: New Book Sets Required | J3: Total Book Set
A4: 1 | B4: Shibnagar Mokshoda sundari vidyamandir | C4: Banashyamnagar, | D4: Raidighi, West Bengal | E4: 758 | F4: 859 | G4: 1617 | H4: 250 | J4: =H4 -> 250
A5: 2 | B5: Ambikanagar High School | C5: Ambikanagar, | D5: Maipith, West Bengal | E5: 710 | F5: 520 | G5: 1230 | H5: 200 | J5: =H5 -> 200
A6: 3 | B6: Dakshin Kashinagar High School | C6: Kuyemuri | D6: Raidighi, West Bengal | E6: 718 | F6: 517 | G6: 1235 | H6: 220 | J6: 220
A7: 4 | B7: Kuyemuri Higher secondary School | C7: Kuyemuri | D7: Raidighi, West Bengal | E7: 707 | F7: 603 | G7: 1310 | H7: 200 | J7: 200
A8: 5 | B8: Ambikanagar High School | C8: Gurguriya | D8: Raidighi, West Bengal | E8: 805 | F8: 635 | G8: 1340 | H8: 278 | J8: 278
A9: 6 | B9: Purba Gurguriya High School | C9: Gurguriya | D9: Raidighi, West Bengal | E9: 740 | F9: 525 | G9: 1265 | H9: 220 | J9: 220
A10: 7 | B10: Bhubaneswari Jaykrishna High School | C10: Bhubaneswari | D10: Raidighi, West Bengal | E10: 517 | F10: 430 | G10: 947 | H10: 220 | J10: 220
A11: 8 | B11: Debnagar High school | C11: Namkhana | D11: Namkhana, West Bengal | E11: 850 | F11: 760 | G11: =E11+F11 -> 1610 | H11: 180 | J11: 180
A12: 9 | B12: Kedarpur Higher Secondary School | C12: pathar | D12: Numkhana, West Benga | E12: 715 | F12: 608 | G12: 1323 | H12: 210 | J12: 210
A13: 10 | B13: Darakapur Pragati Siksha Sadan | C13: pathar | D13: Numkhana, West Benga | E13: 595 | F13: 383 | G13: 978 | H13: 200 | J13: 200
A14: 11 | B14: Narendrapur Milan Bidyamandir | C14: Narendrapur | D14: Raidighi, West Bengal | E14: 670 | F14: 580 | G14: 978 | H14: 150 | J14: 150
A15: 12 | B15: Khagendranath Smriti Vidyamandir | C15: Basanti | D15: Basanti, West Bengal | E15: 720 | F15: 630 | G15: 978 | H15: 200 | J15: 200
B17: Total Students to be covered under MERP project | E17: =SUM(E4:E15) -> 8505 | F17: =SUM(F4:F15) -> 7050 | G17: =SUM(G4:G15) -> 14811 | H17: =SUM(H4:H15) -> 2528 | J17: =SUM(J4:J15) -> 2528
